fUSD/lending_fUSD_20251210
["ID","MTS","AMOUNT","RATE_DAILY","PERIOD"]
[398064519,1765347057812,-790.37,0.00015057,2]
[398064520,1765347057821,-500.0,0.00015057,2]
[398064521,1765347057830,-500.0,0.00015057,2]
[398064522,1765347057840,-627.15,0.00015057,2]
[398064523,1765347057849,-773.23,0.00015057,2]
[398064524,1765347057859,-500.0,0.00015057,2]
[398064525,1765347057868,-506.0772378,0.00015057,2]
[398064526,1765347057878,-513.67,0.00015057,2]
[398064527,1765347057888,-500.0,0.00015057,2]
[398064528,1765347057897,-500.0,0.00015057,2]
[398064529,1765347057906,-500.0,0.00015057,2]
[398064530,1765347057915,-500.0,0.00015057,2]
[398064531,1765347057925,-545.71,0.00015057,2]
[398064532,1765347057934,-500.0,0.00015057,2]
[398064533,1765347057944,-739.12,0.00015057,2]
[398064534,1765347057954,-3120.55,0.00015057,2]
[398064535,1765347057963,-500.0,0.00015087,2]
[398064536,1765347057972,-970.0,0.00015109,2]
[398064537,1765347057981,-1002.82937453,0.00015123,2]
[398064538,1765347057990,-1000.0,0.00015135,2]
[398064539,1765347058000,-1680.0,0.00015155,2]
[398064540,1765347058010,-675.94,0.00015156,2]
[398064541,1765347058019,-500.0,0.00015156,2]
[398064542,1765347058028,-500.0,0.00015156,2]
[398064543,1765347058037,-500.0,0.00015157,2]
[398064544,1765347058047,-500.0,0.00015157,2]
[398064545,1765347058056,-500.0,0.00015157,2]
[398064546,1765347058065,-500.0,0.00015157,2]
[398064547,1765347058075,-500.0,0.00015157,2]
[398064548,1765347058084,-500.0,0.00015157,2]
[398064549,1765347058093,-500.0,0.00015157,2]
[398064550,1765347058102,-500.0,0.00015157,2]
[398064551,1765347058111,-500.0,0.00015157,2]
[398064552,1765347058120,-500.0,0.00015157,2]
[398064553,1765347058130,-500.0,0.00015157,2]
[398064554,1765347058139,-500.0,0.00015157,2]
[398064555,1765347058148,-500.0,0.00015157,2]
[398064556,1765347058158,-777.38,0.00015157,2]
[398064557,1765347058167,-500.0,0.00015157,2]
[398064558,1765347058178,-500.0,0.00015157,2]
[398064559,1765347058189,-500.0,0.00015157,2]
[398064560,1765347058197,-500.0,0.00015157,2]
[398064561,1765347058208,-925.32,0.00015157,2]
[398064562,1765347058217,-500.0,0.00015157,2]
[398064563,1765347058227,-500.42,0.00015157,2]
[398064564,1765347058239,-500.0,0.00015157,2]
[398064565,1765347058250,-500.0,0.00015157,2]
[398064566,1765347058259,-500.0,0.00015157,2]
[398064567,1765347058268,-500.0,0.00015157,2]
[398064568,1765347058277,-500.0,0.00015157,2]
[398064569,1765347058286,-500.0,0.00015157,2]
[398064570,1765347058296,-668.06,0.00015157,2]
[398064571,1765347058305,-500.0,0.00015157,2]
[398064572,1765347058314,-899.71,0.00015157,2]
[398064573,1765347058323,-500.0,0.00015157,2]
[398064574,1765347058332,-500.0,0.00015157,2]
[398064575,1765347058341,-506.77504211,0.00015157,2]
[398064576,1765347058350,-500.0,0.00015157,2]
[398064577,1765347058359,-760.63,0.00015157,2]
[398064578,1765347058368,-500.0,0.00015157,2]
[398064579,1765347058378,-516.31,0.00015157,2]
[398064580,1765347058386,-500.0,0.00015157,2]
[398064581,1765347058396,-789.6,0.00015157,2]
[398064582,1765347058405,-504.19984963,0.00015157,2]
[398064583,1765347058415,-500.0,0.00015157,2]
[398064584,1765347058424,-500.0,0.00015157,2]
[398064585,1765347058434,-840.12,0.00015157,2]
[398064586,1765347058443,-500.0,0.00015157,2]
[398064587,1765347058452,-2123.57,0.00015157,2]
[398064588,1765347058461,-500.0,0.00015157,2]
[398064589,1765347058470,-500.0,0.00015157,2]
[398064590,1765347058480,-500.0,0.00015157,2]
[398064591,1765347058491,-784.32,0.00015157,2]
[398064592,1765347058500,-500.0,0.00015157,2]
[398064593,1765347058509,-500.0,0.00015157,2]
[398064594,1765347058519,-500.0,0.00015157,2]
[398064595,1765347058529,-747.43,0.00015157,2]
[398064596,1765347058538,-500.0,0.00015157,2]
[398064597,1765347058547,-500.0,0.00015157,2]
[398064598,1765347058557,-535.28,0.00015157,2]
[398064599,1765347058568,-590.77,0.00015157,2]
[398064600,1765347058578,-500.0,0.00015157,2]
[398064601,1765347058587,-500.0,0.00015157,2]
[398064602,1765347058596,-500.0,0.00015157,2]
[398064603,1765347058606,-383.88,0.00015157,2]
[398064604,1765347058616,-500.0,0.00015157,2]
[398064605,1765347058625,-1265.31,0.00015157,2]
[398064606,1765347058634,-916.9,0.00015157,2]
[398064607,1765347058646,-500.0,0.00015157,2]
[398064608,1765347058655,-767.23,0.00015157,2]
[398064609,1765347058664,-500.0,0.00015157,2]
[398064610,1765347058674,-500.0,0.00015157,2]
[398064611,1765347058683,-500.0,0.00015157,2]
[398064612,1765347058692,-757.82,0.00015157,2]
[398064613,1765347058702,-500.0,0.00015157,2]
[398064614,1765347058712,-843.39,0.00015157,2]
[398064615,1765347058723,-516.97,0.00015157,2]
[398064616,1765347058732,-500.0,0.00015157,2]
[398064617,1765347058742,-1193.39,0.00015157,2]
[398064618,1765347058751,-500.0,0.00015157,2]
[398064619,1765347058760,-500.0,0.00015157,2]
[398064620,1765347058770,-914.06,0.00015157,2]
[398064621,1765347058779,-500.0,0.00015157,2]
[398064622,1765347058788,-500.0,0.00015157,2]
[398064623,1765347058797,-500.0,0.00015157,2]
[398064624,1765347058807,-1104.1,0.00015157,2]
[398064625,1765347058818,-630.25,0.00015157,2]
[398064626,1765347058827,-500.0,0.00015157,2]
[398064627,1765347058839,-607.49,0.00015157,2]
[398064628,1765347058851,-555.54,0.00015157,2]
[398064629,1765347058861,-500.0,0.00015157,2]
[398064630,1765347058870,-519.68225876,0.00015157,2]
[398064631,1765347058879,-591.62,0.00015157,2]
[398064632,1765347058889,-565.82,0.00015157,2]
[398064633,1765347058898,-1008.62,0.00015157,2]
[398064634,1765347058908,-500.0,0.00015157,2]
[398064635,1765347058917,-500.0,0.00015157,2]
[398064636,1765347058926,-500.0,0.00015157,2]
[398064637,1765347058936,-606.52,0.00015157,2]
[398064638,1765347058945,-500.0,0.00015157,2]
[398064639,1765347058955,-500.0,0.00015157,2]
[398064640,1765347058964,-500.0,0.00015157,2]
[398064641,1765347058973,-500.0,0.00015157,2]
[398064642,1765347058982,-598.0,0.00015157,2]
[398064643,1765347058991,-500.0,0.00015157,2]
[398064644,1765347059000,-500.0,0.00015157,2]
[398064645,1765347059009,-500.0,0.00015157,2]
[398064646,1765347059018,-500.0,0.00015157,2]
[398064647,1765347059027,-500.0,0.00015157,2]
[398064648,1765347059036,-596.68,0.00015157,2]
[398064649,1765347059045,-675.94,0.00015157,2]
[398064650,1765347059054,-500.0,0.00015157,2]
[398064651,1765347059063,-650.27,0.00015157,2]
[398064652,1765347059073,-500.0,0.00015158,2]
[398064653,1765347059082,-500.0,0.00015158,2]
[398064654,1765347059091,-500.0,0.00015158,2]
[398064655,1765347059100,-500.0,0.00015158,2]
[398064656,1765347059109,-500.0,0.00015158,2]
[398064657,1765347059118,-500.0,0.00015158,2]
[398064658,1765347059127,-500.0,0.00015158,2]
[398064659,1765347059136,-500.0,0.00015158,2]
[398064660,1765347059145,-500.0,0.00015158,2]
[398064661,1765347059155,-500.0,0.00015158,2]
[398064662,1765347059164,-500.0,0.00015158,2]
[398064663,1765347059173,-500.0,0.00015158,2]
[398064664,1765347059182,-678.34,0.00015158,2]
[398064665,1765347059191,-500.0,0.00015158,2]
[398064666,1765347059200,-500.0,0.00015158,2]
[398064667,1765347059210,-507.21031304,0.00015158,2]
[398064668,1765347059220,-500.0,0.00015158,2]
[398064669,1765347059230,-500.0,0.00015158,2]
[398064670,1765347059240,-500.0,0.00015158,2]
[398064671,1765347059249,-500.0,0.00015158,2]
[398064672,1765347059258,-674.29,0.00015158,2]
[398064673,1765347059267,-500.0,0.00015158,2]
[398064674,1765347059277,-500.0,0.00015158,2]
[398064675,1765347059286,-500.0,0.00015158,2]
[398064676,1765347059296,-500.0,0.00015158,2]
[398064677,1765347059305,-503.96649223,0.00015158,2]
[398064678,1765347059316,-516.85675955,0.00015158,2]
[398064679,1765347059325,-500.0,0.00015158,2]
[398064680,1765347059335,-500.0,0.00015158,2]
[398064681,1765347059344,-500.0,0.00015158,2]
[398064682,1765347059353,-500.0,0.00015158,2]
[398064683,1765347059362,-500.0,0.00015158,2]
[398064684,1765347059371,-500.0,0.00015158,2]
[398064685,1765347059381,-500.0,0.00015158,2]
[398064686,1765347059391,-500.0,0.00015158,2]
[398064687,1765347059400,-575.27,0.00015158,2]
[398064688,1765347059409,-515.57597036,0.00015158,2]
[398064689,1765347059419,-500.0,0.00015158,2]
[398064690,1765347059428,-500.0,0.00015158,2]
[398064691,1765347059437,-500.0,0.00015158,2]
[398064692,1765347059447,-507.30646172,0.00015158,2]
[398064693,1765347059455,-500.0,0.00015158,2]
[398064694,1765347059465,-500.0,0.00015158,2]
[398064695,1765347059475,-500.0,0.00015158,2]
[398064696,1765347059484,-500.0,0.00015158,2]
[398064697,1765347059493,-500.0,0.00015158,2]
[398064698,1765347059503,-500.0,0.00015158,2]
[398064699,1765347059513,-500.0,0.00015158,2]
[398064700,1765347059522,-900.86,0.00015158,2]
[398064701,1765347059532,-500.0,0.00015158,2]
[398064702,1765347059543,-500.0,0.00015158,2]
[398064703,1765347059554,-608.93061847,0.00015158,2]
[398064704,1765347059563,-500.0,0.00015158,2]
[398064705,1765347059576,-500.0,0.00015158,2]
[398064706,1765347059585,-500.0,0.00015158,2]
[398064707,1765347059594,-500.0,0.00015158,2]
[398064708,1765347059604,-500.0,0.00015158,2]
[398064709,1765347059614,-500.0,0.00015158,2]
[398064710,1765347059624,-500.0,0.00015158,2]
[398064711,1765347059633,-500.0,0.00015158,2]
[398064712,1765347059642,-500.0,0.00015158,2]
[398064713,1765347059653,-504.29860446,0.00015158,2]
[398064714,1765347059662,-500.0,0.00015158,2]
[398064715,1765347059671,-500.0,0.00015158,2]
[398064716,1765347059681,-670.07,0.00015158,2]
[398064717,1765347059690,-500.0,0.00015158,2]
[398064718,1765347059700,-500.0,0.00015158,2]
[398064719,1765347059710,-500.0,0.00015158,2]
[398064720,1765347059720,-719.02,0.00015158,2]
[398064721,1765347059729,-500.0,0.00015158,2]
[398064722,1765347059739,-505.58001873,0.00015158,2]
[398064723,1765347059748,-527.16359962,0.00015158,2]
[398064724,1765347059758,-500.0,0.00015158,2]
[398064725,1765347059768,-500.0,0.00015158,2]
[398064726,1765347059777,-500.0,0.00015158,2]
[398064727,1765347059786,-500.0,0.00015158,2]
[398064728,1765347059795,-500.0,0.00015158,2]
[398064729,1765347059805,-860.73,0.00015158,2]
[398064730,1765347059814,-183.00965765,0.00015158,2]
[398064731,1765347059823,-513.72,0.00015158,2]
[398064732,1765347059834,-719.5,0.00015158,2]
[398064733,1765347059844,-527.54,0.00015158,2]
[398064734,1765347059854,-531.24412636,0.00015158,2]
[398064735,1765347059863,-500.0,0.00015158,2]
[398064736,1765347059873,-572.22910641,0.00015158,2]
[398064737,1765347059882,-751.99,0.00015158,2]
[398064738,1765347059891,-500.0,0.00015158,2]
[398064739,1765347059900,-500.0,0.00015158,2]
[398064740,1765347059909,-500.0,0.00015158,2]
[398064741,1765347059919,-221.32120126,0.00015158,2]
[398064742,1765347059929,-500.0,0.00015158,2]
[398064743,1765347059939,-567.17693643,0.00015158,2]
[398064744,1765347059949,-221.23738892,0.00015158,2]
[398064745,1765347059959,-500.0,0.00015158,2]
[398064746,1765347059968,-500.0,0.00015158,2]
[398064747,1765347059977,-500.0,0.00015158,2]
[398064748,1765347059986,-500.0,0.00015158,2]
[398064749,1765347059996,-500.0,0.00015158,2]
[398064750,1765347060005,-500.0,0.00015158,2]
[398064751,1765347060016,-500.0,0.00015158,2]
[398064752,1765347060026,-500.0,0.00015158,2]
[398064753,1765347060035,-500.0,0.00015158,2]
[398064754,1765347060045,-360.5,0.00015158,2]
[398064755,1765347060055,-500.0,0.00015158,2]
[398064756,1765347060065,-494.79883246,0.00015158,2]
[398064757,1765347060074,-503.64202236,0.00015158,2]
[398064758,1765347060083,-500.0,0.00015158,2]
[398064759,1765347060092,-612.27,0.00015158,2]
[398064760,1765347060101,-500.0,0.00015158,2]
[398064761,1765347060110,-545.04948366,0.00015158,2]
[398064762,1765347060119,-500.0,0.00015158,2]
[398064763,1765347060128,-566.17,0.00015158,2]
[398064764,1765347060137,-500.0,0.00015158,2]
[398064765,1765347060147,-500.0,0.00015158,2]
[398064766,1765347060156,-503.08206252,0.00015158,2]
[398064767,1765347060165,-500.0,0.00015158,2]
[398064768,1765347060174,-500.0,0.00015158,2]
[398064769,1765347060183,-576.25789452,0.00015158,2]
[398064770,1765347060192,-500.0,0.00015158,2]
[398064771,1765347060202,-500.0,0.00015158,2]
[398064772,1765347060211,-500.0,0.00015158,2]
[398064773,1765347060220,-500.0,0.00015158,2]
[398064774,1765347060230,-500.0,0.00015158,2]
[398064775,1765347060239,-500.0,0.00015158,2]
[398064776,1765347060248,-500.0,0.00015158,2]
[398064777,1765347060257,-553.25,0.00015158,2]
[398064778,1765347060434,-500.0,0.00015158,2]
[398064779,1765347060451,-500.0,0.00015158,2]
[398064780,1765347060460,-500.0,0.00015158,2]
[398064781,1765347060469,-500.0,0.00015158,2]
[398064782,1765347060478,-500.0,0.00015158,2]
[398064783,1765347060487,-500.0,0.00015158,2]
[398064784,1765347060496,-500.0,0.00015158,2]
[398064785,1765347060506,-500.0,0.00015158,2]
[398064786,1765347060515,-330.82209095,0.00015158,2]
[398064787,1765347060524,-500.0,0.00015158,2]
[398064788,1765347060533,-500.0,0.00015158,2]
[398064789,1765347060542,-500.0,0.00015158,2]
[398064790,1765347060551,-500.0,0.00015158,2]
[398064791,1765347060560,-354.37493692,0.00015158,2]
[398064792,1765347060575,-500.0,0.00015158,2]
[398064793,1765347060585,-500.0,0.00015158,2]
[398064794,1765347060594,-500.0,0.00015158,2]
[398064795,1765347060603,-500.0,0.00015158,2]
[398064796,1765347060615,-500.0,0.00015158,2]
[398064797,1765347060624,-403.87760787,0.00015158,2]
[398064798,1765347060633,-500.0,0.00015158,2]
[398064799,1765347060644,-507.45908625,0.00015158,2]
[398064800,1765347060654,-500.0,0.00015158,2]
[398064801,1765347060663,-1360.16,0.00015158,2]
[398064802,1765347060672,-502.06666089,0.00015158,2]
[398064803,1765347060681,-523.07,0.00015158,2]
[398064804,1765347060691,-570.74947612,0.00015158,2]
[398064805,1765347060700,-500.0,0.00015158,2]
[398064806,1765347060709,-500.0,0.00015158,2]
[398064807,1765347060718,-500.0,0.00015158,2]
[398064808,1765347060727,-500.0,0.00015158,2]
[398064809,1765347060737,-500.0,0.00015158,2]
[398064810,1765347060746,-500.0,0.00015158,2]
[398064811,1765347060757,-500.0,0.00015158,2]
[398064812,1765347060766,-736.55,0.00015158,2]
[398064813,1765347060775,-500.0,0.00015158,2]
[398064814,1765347060794,-500.0,0.00015158,2]
[398064815,1765347060806,-552.37,0.00015158,2]
[398064816,1765347060815,-500.0,0.00015158,2]
[398064817,1765347060825,-500.0,0.00015158,2]
[398064818,1765347060835,-888.59,0.00015158,2]
[398064819,1765347060845,-500.0,0.00015158,2]
[398064820,1765347060854,-500.0,0.00015158,2]
[398064821,1765347060864,-500.0,0.00015158,2]
[398064822,1765347060873,-605.01,0.00015158,2]
[398064823,1765347060883,-924.37,0.00015158,2]
[398064824,1765347060892,-202.53876033,0.00015158,2]
[398064825,1765347060901,-500.0,0.00015158,2]
[398064826,1765347060911,-500.0,0.00015158,2]
[398064827,1765347060921,-500.0,0.00015158,2]
[398064828,1765347060932,-500.0,0.00015158,2]
[398064829,1765347060941,-192.65542762,0.00015158,2]
[398064830,1765347060951,-500.0,0.00015158,2]
[398064831,1765347060960,-500.0,0.00015158,2]
[398064832,1765347060970,-561.87,0.00015158,2]
[398064833,1765347060980,-500.0,0.00015158,2]
[398064834,1765347060989,-500.0,0.00015158,2]
[398064835,1765347060998,-500.0,0.00015158,2]
[398064836,1765347061008,-508.85680736,0.00015158,2]
[398064837,1765347061018,-500.0,0.00015158,2]
[398064838,1765347061027,-500.0,0.00015158,2]
[398064839,1765347061036,-588.79,0.00015158,2]
[398064840,1765347061045,-500.0,0.00015158,2]
[398064841,1765347061056,-426.85152823,0.00015158,2]
[398064842,1765347061065,-676.98,0.00015158,2]
[398064843,1765347061075,-569.99710317,0.00015158,2]
[398064844,1765347061085,-500.0,0.00015158,2]
[398064845,1765347061094,-500.0,0.00015158,2]
[398064846,1765347061104,-500.0,0.00015158,2]
[398064847,1765347061113,-500.0,0.00015158,2]
[398064848,1765347061122,-500.0,0.00015158,2]
[398064849,1765347061132,-500.0,0.00015158,2]
[398064850,1765347061141,-164.97346822,0.00015158,2]
[398064851,1765347061150,-500.0,0.00015158,2]
[398064852,1765347061160,-500.0,0.00015158,2]
[398064853,1765347061170,-500.0,0.00015158,2]
[398064854,1765347061179,-500.0,0.00015158,2]
[398064855,1765347061188,-500.0,0.00015158,2]
[398064856,1765347061198,-500.0,0.00015158,2]
[398064857,1765347061208,-500.0,0.00015158,2]
[398064858,1765347061218,-1000.0,0.00015183,3]
[398064859,1765347061228,-4158.43053778,0.00015192,2]
[398064860,1765347061238,-643.26,0.000152,2]
[398064861,1765347061247,-2000.0,0.00015218,2]
[398064862,1765347061257,-500.0,0.0001523,2]
[398064863,1765347061267,-500.0,0.0001523,2]
[398064864,1765347061276,-500.0,0.0001523,2]
[398064865,1765347061286,-500.0,0.0001523,2]
[398064866,1765347061295,-500.0,0.0001523,2]
[398064867,1765347061305,-500.0,0.0001523,2]
[398064868,1765347061314,-500.0,0.0001523,2]
[398064869,1765347061323,-500.0,0.0001523,2]
[398064870,1765347061333,-495.0,0.00015233,2]
[398064871,1765347061343,-491.00048376,0.00015234,2]
[398064872,1765347061352,-970.0,0.00015235,2]
[398064873,1765347061362,-171.1554458,0.00015246,2]
[398064874,1765347061371,-970.0,0.00015253,2]
[398064875,1765347061380,-273.9981001,0.00015257,2]
[398064876,1765347061390,-500.0,0.00015257,2]
[398064877,1765347061399,-500.0,0.00015257,2]
[398064878,1765347061408,-237.02151661,0.00015258,2]
[398064879,1765347061417,-500.0,0.00015258,2]
[398064880,1765347061426,-500.0,0.00015258,2]
[398064881,1765347061435,-150.0,0.00015259,2]
[398064882,1765347061444,-151.55115124,0.00015259,2]
[398064883,1765347061454,-150.0,0.00015259,2]
[398064884,1765347061463,-150.0,0.00015259,2]
[398064885,1765347061472,-262.11744965,0.00015259,2]
[398064886,1765347061482,-150.0,0.00015259,2]
[398064887,1765347061491,-970.0,0.00015262,2]
[398064888,1765347061500,-3408.48624,0.0001528,2]
[398064889,1765347061511,-500.0,0.00015299,2]
[398064890,1765347061520,-1000.0,0.000153,2]
[398064891,1765347061531,-19656.66653194,0.00015314,2]
[398064892,1765347061541,-2003.0,0.00015315,2]
[398064893,1765347061551,-970.0,0.00015321,2]
[398064894,1765347061561,-560.32,0.0001533,2]
[398064895,1765347061575,-655.23,0.0001533,2]
[398064896,1765347061584,-1494.62,0.0001533,2]
[398064897,1765347061594,-500.0,0.0001533,2]
[398064898,1765347061603,-500.0,0.0001533,2]
[398064899,1765347061613,-500.0,0.0001533,2]
[398064900,1765347061622,-500.0,0.0001533,2]
[398064901,1765347061632,-500.0,0.0001533,2]
[398064902,1765347061642,-579.16,0.0001533,2]
[398064903,1765347061651,-500.0,0.0001533,2]
[398064904,1765347061662,-500.01,0.0001533,2]
[398064905,1765347061671,-575.12,0.0001533,2]
[398064906,1765347061681,-689.66,0.0001533,2]
[398064907,1765347061691,-799.56,0.0001533,2]
[398064908,1765347061700,-500.0,0.0001533,2]
[398064909,1765347061710,-667.49,0.0001533,2]
[398064910,1765347061723,-622.81,0.0001533,2]
[398064911,1765347061735,-500.0,0.0001533,2]
[398064912,1765347061745,-500.0,0.0001533,2]
[398064913,1765347061755,-500.0,0.0001533,2]
[398064914,1765347061766,-500.0,0.0001533,2]
[398064915,1765347061775,-2056.73,0.0001533,2]
[398064916,1765347061785,-500.0,0.0001533,2]
[398064917,1765347061795,-500.0,0.0001533,2]
[398064918,1765347061805,-500.0,0.0001533,2]
[398064919,1765347061815,-2961.05,0.0001533,2]
[398064920,1765347061825,-738.92,0.0001533,2]
[398064921,1765347061835,-698.5,0.0001533,2]
[398064922,1765347061845,-517.34510341,0.0001533,2]
[398064923,1765347061855,-970.0,0.00015331,2]
[398064924,1765347061864,-615.52,0.00015331,2]
[398064925,1765347061875,-500.0,0.00015331,2]
[398064926,1765347061884,-500.0,0.00015331,2]
[398064927,1765347061894,-500.0,0.00015331,2]
[398064928,1765347061904,-389.85168101,0.00015331,2]
[398064929,1765347061914,-521.52,0.00015331,2]
[398064930,1765347061923,-500.0,0.00015331,2]
[398064931,1765347061932,-590.21655042,0.00015331,2]
[398064932,1765347061942,-500.0,0.00015331,2]
[398064933,1765347061951,-500.0,0.00015331,2]
[398064934,1765347061960,-500.0,0.00015331,2]
[398064935,1765347061969,-500.0,0.00015331,2]
[398064936,1765347061979,-500.0,0.00015331,2]
[398064937,1765347061988,-500.0,0.00015331,2]
[398064938,1765347061997,-500.0,0.00015331,2]
[398064939,1765347062007,-500.0,0.00015331,2]
[398064940,1765347062016,-512.84,0.00015331,2]
[398064941,1765347062026,-500.0,0.00015331,2]
[398064942,1765347062036,-642.09349761,0.00015331,2]
[398064943,1765347062045,-500.0,0.00015331,2]
[398064944,1765347062055,-500.0,0.00015331,2]
[398064945,1765347062064,-707.35,0.00015331,2]
[398064946,1765347062075,-500.0,0.00015331,2]
[398064947,1765347062085,-500.0,0.00015331,2]
[398064948,1765347062094,-500.0,0.00015331,2]
[398064949,1765347062104,-564.55,0.00015331,2]
[398064950,1765347062114,-500.0,0.00015331,2]
[398064951,1765347062124,-500.0,0.00015331,2]
[398064952,1765347062134,-500.0,0.00015331,2]
[398064953,1765347062143,-542.55,0.00015331,2]
[398064954,1765347062152,-500.0,0.00015331,2]
[398064955,1765347062161,-500.0,0.00015331,2]
[398064956,1765347062171,-500.0,0.00015331,2]
[398064957,1765347062180,-500.0,0.00015331,2]
[398064958,1765347062189,-598.89,0.00015331,2]
[398064959,1765347062199,-500.0,0.00015331,2]
[398064960,1765347062208,-666.79,0.00015331,2]
[398064961,1765347062218,-263.20880363,0.00015331,2]
[398064962,1765347062228,-514.66650474,0.00015331,2]
[398064963,1765347062237,-500.0,0.00015331,2]
[398064964,1765347062247,-500.0,0.00015331,2]
[398064965,1765347062256,-500.0,0.00015331,2]
[398064966,1765347062265,-500.0,0.00015331,2]
[398064967,1765347062276,-500.0,0.00015331,2]
[398064968,1765347062285,-500.0,0.00015331,2]
[398064969,1765347062294,-500.0,0.00015331,2]
[398064970,1765347062305,-500.0,0.00015331,2]
[398064971,1765347062314,-500.0,0.00015331,2]
[398064972,1765347062323,-500.0,0.00015331,2]
[398064973,1765347062332,-500.0,0.00015331,2]
[398064974,1765347062341,-500.0,0.00015331,2]
[398064975,1765347062351,-500.0,0.00015331,2]
[398064976,1765347062360,-525.15,0.00015331,2]
[398064977,1765347062369,-500.0,0.00015331,2]
[398064978,1765347062378,-500.0,0.00015331,2]
[398064979,1765347062388,-500.0,0.00015331,2]
[398064980,1765347062397,-500.0,0.00015331,2]
[398064981,1765347062407,-500.0,0.00015331,2]
[398064982,1765347062416,-500.0,0.00015331,2]
[398064983,1765347062428,-500.0,0.00015331,2]
[398064984,1765347062438,-500.0,0.00015331,2]
[398064985,1765347062449,-500.0,0.00015331,2]
[398064986,1765347062466,-500.0,0.00015331,2]
[398064987,1765347062475,-500.0,0.00015331,2]
[398064988,1765347062484,-500.0,0.00015331,2]
[398064989,1765347062493,-500.0,0.00015331,2]
[398064990,1765347062503,-672.06,0.00015331,2]
[398064991,1765347062513,-500.0,0.00015331,2]
[398064992,1765347062522,-500.0,0.00015331,2]
[398064993,1765347062532,-530.69560457,0.00015331,2]
[398064994,1765347062541,-500.0,0.00015331,2]
[398064995,1765347062550,-506.49736073,0.00015331,2]
[398064996,1765347062559,-500.0,0.00015331,2]
[398064997,1765347062571,-500.0,0.00015331,2]
[398064998,1765347062580,-500.0,0.00015331,2]
[398064999,1765347062590,-500.0,0.00015331,2]
[398065000,1765347062599,-500.0,0.00015331,2]
[398065001,1765347062609,-855.720438,0.00015331,2]
[398065002,1765347062619,-630.52,0.00015331,2]
[398065003,1765347062629,-500.0,0.00015331,2]
[398065004,1765347062640,-157.87582,0.00015331,2]
[398065005,1765347062652,-500.0,0.00015331,2]
[398065006,1765347062662,-500.0,0.00015331,2]
[398065007,1765347062676,-1660.048153,0.00015331,2]
[398065008,1765347062692,-500.0,0.00015331,2]
[398065009,1765347062701,-436.83339006,0.00015331,2]
[398065010,1765347062710,-500.0,0.00015331,2]
[398065011,1765347062720,-1731.234733,0.00015331,2]
[398065012,1765347062730,-500.0,0.00015331,2]
[398065013,1765347062740,-195.089803,0.00015331,2]
[398065014,1765347062751,-917.58,0.00015331,2]
[398065015,1765347062765,-500.0,0.00015331,2]
[398065016,1765347062775,-500.0,0.00015331,2]
[398065017,1765347062785,-837.96,0.00015331,2]
[398065018,1765347062796,-1133.052679,0.00015331,2]